[Event "Titled Tuesday Blitz December 20 Early 2022"]
[White "Truequitos"]
[Black "Makswolf200817"]
[WhiteElo "2536"]
[BlackElo "2651"]
[Result "1-0"]
[Round "11"]
[TimeControl "180+2"]
[Date "2022.12.20"]
[WhiteClock "0:00:01"]
[BlackClock "0:00:01"]

1. Nf3 {[%clk 0:03:00]}  d5 {[%clk 0:02:59]} 2. g3 {[%clk 0:03:00]}  Bg4 {[%clk 0:02:58]} 3. Ne5 {[%clk 0:02:59]}  Bf5 {[%clk 0:02:57]} 4. c4 {[%clk 0:02:59]}  e6 {[%clk 0:02:56]} 5. Qb3 {[%clk 0:02:55]}  Be4 {[%clk 0:02:17]} 6. f3 {[%clk 0:02:53]}  dxc4 {[%clk 0:02:16]} 7. Qb5+ {[%clk 0:02:39]}  Bc6 {[%clk 0:02:16]} 8. Nxc6 {[%clk 0:02:38]}  Nxc6 {[%clk 0:02:17]} 9. Qxc4 {[%clk 0:02:24]}  Nf6 {[%clk 0:02:14]} 10. Bg2 {[%clk 0:02:22]}  Qd4 {[%clk 0:02:01]} 11. Qb3 {[%clk 0:01:53]}  Qb4 {[%clk 0:01:43]} 12. Qd1 {[%clk 0:01:43]}  Bc5 {[%clk 0:01:40]} 13. Nc3 {[%clk 0:01:34]}  O-O {[%clk 0:01:38]} 14. e3 {[%clk 0:01:31]}  Rad8 {[%clk 0:01:37]} 15. Qe2 {[%clk 0:01:31]}  Be7 {[%clk 0:01:07]} 16. O-O {[%clk 0:01:27]}  e5 {[%clk 0:01:06]} 17. f4 {[%clk 0:01:26]}  Qd6 {[%clk 0:01:03]} 18. fxe5 {[%clk 0:01:23]}  Nxe5 {[%clk 0:01:03]} 19. d4 {[%clk 0:01:21]}  Ng6 {[%clk 0:01:00]} 20. b3 {[%clk 0:01:13]}  c5 {[%clk 0:00:59]} 21. d5 {[%clk 0:01:08]}  Rfe8 {[%clk 0:00:56]} 22. Bb2 {[%clk 0:01:07]}  a6 {[%clk 0:00:52]} 23. Qf2 {[%clk 0:01:01]}  Kh8 {[%clk 0:00:23]} 24. Qf5 {[%clk 0:00:56]}  Rf8 {[%clk 0:00:17]} 25. e4 {[%clk 0:00:56]}  Nd7 {[%clk 0:00:16]} 26. Ne2 {[%clk 0:00:52]}  Bf6 {[%clk 0:00:15]} 27. Bxf6 {[%clk 0:00:45]}  Nxf6 {[%clk 0:00:15]} 28. Nf4 {[%clk 0:00:41]}  Nd7 {[%clk 0:00:14]} 29. Nxg6+ {[%clk 0:00:36]}  hxg6 {[%clk 0:00:14]} 30. Qg5 {[%clk 0:00:31]}  Qe5 {[%clk 0:00:13]} 31. Qh4+ {[%clk 0:00:28]}  Kg8 {[%clk 0:00:13]} 32. Rad1 {[%clk 0:00:26]}  Qd6 {[%clk 0:00:13]} 33. Rf2 {[%clk 0:00:22]}  Rde8 {[%clk 0:00:13]} 34. Rdf1 {[%clk 0:00:19]}  Ne5 {[%clk 0:00:10]} 35. Qf4 {[%clk 0:00:18]}  Re7 {[%clk 0:00:07]} 36. Rd2 {[%clk 0:00:15]}  Rfe8 {[%clk 0:00:08]} 37. Rfd1 {[%clk 0:00:14]}  b5 {[%clk 0:00:07]} 38. h3 {[%clk 0:00:13]}  Rc7 {[%clk 0:00:07]} 39. Kh2 {[%clk 0:00:13]}  c4 {[%clk 0:00:06]} 40. bxc4 {[%clk 0:00:12]}  bxc4 {[%clk 0:00:07]} 41. Rc2 {[%clk 0:00:12]}  f6 {[%clk 0:00:07]} 42. Rdc1 {[%clk 0:00:11]}  g5 {[%clk 0:00:07]} 43. Qf5 {[%clk 0:00:11]}  Kf7 {[%clk 0:00:07]} 44. Bf1 {[%clk 0:00:11]}  Rec8 {[%clk 0:00:07]} 45. Be2 {[%clk 0:00:11]}  g6 {[%clk 0:00:05]} 46. Qf1 {[%clk 0:00:11]}  Qb4 {[%clk 0:00:02]} 47. Rc3 {[%clk 0:00:09]}  a5 {[%clk 0:00:03]} 48. R1c2 {[%clk 0:00:09]}  Ke7 {[%clk 0:00:03]} 49. Qc1 {[%clk 0:00:08]}  a4 {[%clk 0:00:03]} 50. Rb2 {[%clk 0:00:08]}  Qc5 {[%clk 0:00:03]} 51. Rbc2 {[%clk 0:00:07]}  Qd4 {[%clk 0:00:04]} 52. Qb1 {[%clk 0:00:03]}  g4 {[%clk 0:00:04]} 53. Qb4+ {[%clk 0:00:04]}  Kf7 {[%clk 0:00:04]} 54. d6 {[%clk 0:00:04]}  Rd7 {[%clk 0:00:02]} 55. Qxa4 {[%clk 0:00:05]}  Rh8 {[%clk 0:00:01]} 56. h4 {[%clk 0:00:04]}  Qxe4 {[%clk 0:00:02]} 57. Qb5 {[%clk 0:00:03]}  Qf5 {[%clk 0:00:01]} 58. Bd1 {[%clk 0:00:01]} 1-0


[Site "https://www.chess.com"]

[Event "Titled Tuesday Blitz December 20 Early 2022"]
[White "Tsyhanchuk_Stanislav"]
[Black "santosalberto1987"]
[WhiteElo "2335"]
[BlackElo "2495"]
[Result "1/2-1/2"]
[Round "11"]
[TimeControl "180+2"]
[Date "2022.12.20"]
[WhiteClock "0:00:35"]
[BlackClock "0:00:07"]

1. e4 {[%clk 0:02:58]}  c5 {[%clk 0:02:52]} 2. Nf3 {[%clk 0:02:57]}  Nc6 {[%clk 0:02:52]} 3. Bb5 {[%clk 0:02:56]}  g6 {[%clk 0:02:52]} 4. O-O {[%clk 0:02:55]}  Bg7 {[%clk 0:02:52]} 5. c3 {[%clk 0:02:55]}  Nf6 {[%clk 0:02:52]} 6. Re1 {[%clk 0:02:55]}  O-O {[%clk 0:02:52]} 7. d4 {[%clk 0:02:52]}  cxd4 {[%clk 0:02:53]} 8. cxd4 {[%clk 0:02:51]}  d5 {[%clk 0:02:53]} 9. e5 {[%clk 0:02:52]}  Ne4 {[%clk 0:02:54]} 10. Nc3 {[%clk 0:02:49]}  Nxc3 {[%clk 0:02:53]} 11. bxc3 {[%clk 0:02:48]}  Bg4 {[%clk 0:02:54]} 12. a4 {[%clk 0:02:48]}  Rc8 {[%clk 0:02:53]} 13. Ba3 {[%clk 0:02:47]}  a6 {[%clk 0:02:49]} 14. Be2 {[%clk 0:02:35]}  Re8 {[%clk 0:02:44]} 15. h3 {[%clk 0:02:34]}  Bxf3 {[%clk 0:02:44]} 16. Bxf3 {[%clk 0:02:33]}  e6 {[%clk 0:02:45]} 17. Bc5 {[%clk 0:02:28]}  Bf8 {[%clk 0:02:41]} 18. Bxf8 {[%clk 0:02:27]}  Rxf8 {[%clk 0:02:42]} 19. Qd3 {[%clk 0:02:27]}  Na5 {[%clk 0:02:42]} 20. Reb1 {[%clk 0:02:25]}  Qd7 {[%clk 0:02:36]} 21. Rb4 {[%clk 0:02:22]}  Rc4 {[%clk 0:02:33]} 22. Rab1 {[%clk 0:02:12]}  Rfc8 {[%clk 0:02:32]} 23. Rxc4 {[%clk 0:02:04]}  Rxc4 {[%clk 0:02:30]} 24. Rb4 {[%clk 0:02:03]}  Qc6 {[%clk 0:02:21]} 25. Rxc4 {[%clk 0:02:02]}  Nxc4 {[%clk 0:02:11]} 26. Qc2 {[%clk 0:01:59]}  Nb6 {[%clk 0:02:11]} 27. a5 {[%clk 0:01:53]}  Nc4 {[%clk 0:02:10]} 28. Qa2 {[%clk 0:01:52]}  Qb5 {[%clk 0:02:06]} 29. Be2 {[%clk 0:01:51]}  Kf8 {[%clk 0:01:34]} 30. Bxc4 {[%clk 0:01:50]}  dxc4 {[%clk 0:01:32]} 31. Qa3+ {[%clk 0:01:50]}  Kg7 {[%clk 0:01:30]} 32. g4 {[%clk 0:01:21]}  h6 {[%clk 0:01:27]} 33. Kf1 {[%clk 0:01:15]}  Qb3 {[%clk 0:01:26]} 34. Qe7 {[%clk 0:01:12]}  Qxc3 {[%clk 0:01:25]} 35. Qf6+ {[%clk 0:01:11]}  Kg8 {[%clk 0:01:25]} 36. Qd8+ {[%clk 0:01:10]}  Kh7 {[%clk 0:01:24]} 37. Qf6 {[%clk 0:01:02]}  Qxh3+ {[%clk 0:01:11]} 38. Ke1 {[%clk 0:00:52]}  Qc3+ {[%clk 0:00:54]} 39. Kf1 {[%clk 0:00:45]}  Qd3+ {[%clk 0:00:37]} 40. Kg1 {[%clk 0:00:36]}  Kg8 {[%clk 0:00:21]} 41. Qd8+ {[%clk 0:00:35]}  Kg7 {[%clk 0:00:20]} 42. Qf6+ {[%clk 0:00:35]}  Kg8 {[%clk 0:00:19]} 43. Qd8+ {[%clk 0:00:35]}  Kh7 {[%clk 0:00:19]} 44. Qf6 {[%clk 0:00:35]}  Kg8 {[%clk 0:00:07]} 1/2-1/2


[Site "https://www.chess.com"]

[Event "Titled Tuesday Blitz December 20 Early 2022"]
[White "Van der Nat, Nicholas"]
[Black "googlegoom"]
[WhiteFideId "14300427"]
[WhiteElo "2362"]
[BlackElo "2581"]
[Result "1/2-1/2"]
[Round "11"]
[TimeControl "180+2"]
[Date "2022.12.20"]
[WhiteClock "0:00:09"]
[BlackClock "0:00:10"]

1. c4 {[%clk 0:03:00]}  c6 {[%clk 0:02:59]} 2. Nf3 {[%clk 0:03:00]}  d5 {[%clk 0:03:00]} 3. g3 {[%clk 0:03:01]}  Nf6 {[%clk 0:03:00]} 4. Bg2 {[%clk 0:03:01]}  e6 {[%clk 0:03:00]} 5. b3 {[%clk 0:03:00]}  Be7 {[%clk 0:03:00]} 6. Bb2 {[%clk 0:03:00]}  Nbd7 {[%clk 0:03:00]} 7. d4 {[%clk 0:03:00]}  b6 {[%clk 0:03:00]} 8. O-O {[%clk 0:03:00]}  Bb7 {[%clk 0:02:59]} 9. Nc3 {[%clk 0:02:58]}  O-O {[%clk 0:02:59]} 10. Qd3 {[%clk 0:02:58]}  Rc8 {[%clk 0:02:58]} 11. e4 {[%clk 0:02:58]}  c5 {[%clk 0:02:18]} 12. exd5 {[%clk 0:02:51]}  exd5 {[%clk 0:02:17]} 13. cxd5 {[%clk 0:02:48]}  Nxd5 {[%clk 0:02:14]} 14. Rad1 {[%clk 0:02:10]}  Nb4 {[%clk 0:02:00]} 15. Qb1 {[%clk 0:02:00]}  Qc7 {[%clk 0:01:51]} 16. d5 {[%clk 0:01:50]}  Bf6 {[%clk 0:01:38]} 17. a3 {[%clk 0:01:19]}  Bxc3 {[%clk 0:01:32]} 18. d6 {[%clk 0:01:16]}  Qb8 {[%clk 0:01:16]} 19. Bxc3 {[%clk 0:01:15]}  Nd5 {[%clk 0:01:14]} 20. Ng5 {[%clk 0:01:11]}  N5f6 {[%clk 0:00:54]} 21. Bh3 {[%clk 0:00:55]}  h6 {[%clk 0:00:23]} 22. Bxd7 {[%clk 0:00:46]}  hxg5 {[%clk 0:00:22]} 23. Bxc8 {[%clk 0:00:45]}  Qxc8 {[%clk 0:00:23]} 24. Bxf6 {[%clk 0:00:44]}  gxf6 {[%clk 0:00:24]} 25. d7 {[%clk 0:00:41]}  Qc6 {[%clk 0:00:24]} 26. f3 {[%clk 0:00:42]}  Rd8 {[%clk 0:00:24]} 27. Qf5 {[%clk 0:00:41]}  Kg7 {[%clk 0:00:24]} 28. Rd2 {[%clk 0:00:31]}  Qe6 {[%clk 0:00:22]} 29. Qxe6 {[%clk 0:00:28]}  fxe6 {[%clk 0:00:23]} 30. Kf2 {[%clk 0:00:12]}  Kf7 {[%clk 0:00:22]} 31. h4 {[%clk 0:00:09]}  gxh4 {[%clk 0:00:19]} 32. gxh4 {[%clk 0:00:10]}  Bd5 {[%clk 0:00:20]} 33. b4 {[%clk 0:00:09]}  c4 {[%clk 0:00:19]} 34. Rg1 {[%clk 0:00:10]}  Rxd7 {[%clk 0:00:18]} 35. Ke3 {[%clk 0:00:10]}  Rd8 {[%clk 0:00:10]} 36. Rdg2 {[%clk 0:00:09]} 1/2-1/2


[Site "https://www.chess.com"]

[Event "Titled Tuesday Blitz December 20 Early 2022"]
[White "VincentKeymer"]
[Black "Ibarra Jerez, Jose Carlos"]
[BlackFideId "2226332"]
[WhiteElo "2980"]
[BlackElo "2563"]
[Result "0-1"]
[Round "11"]
[TimeControl "180+2"]
[Date "2022.12.20"]
[WhiteClock "0:00:01"]
[BlackClock "0:00:14"]

1. Nf3 {[%clk 0:03:00]}  Nf6 {[%clk 0:02:57]} 2. c4 {[%clk 0:03:00]}  d6 {[%clk 0:02:57]} 3. d4 {[%clk 0:03:00]}  g6 {[%clk 0:02:58]} 4. Nc3 {[%clk 0:03:00]}  Bf5 {[%clk 0:02:58]} 5. Nh4 {[%clk 0:02:58]}  Bd7 {[%clk 0:02:57]} 6. g3 {[%clk 0:02:58]}  e5 {[%clk 0:02:57]} 7. Bg2 {[%clk 0:02:55]}  Nc6 {[%clk 0:02:49]} 8. d5 {[%clk 0:02:50]}  Ne7 {[%clk 0:02:40]} 9. O-O {[%clk 0:02:50]}  Bg7 {[%clk 0:02:40]} 10. c5 {[%clk 0:02:13]}  O-O {[%clk 0:02:37]} 11. Qb3 {[%clk 0:02:09]}  Rb8 {[%clk 0:02:25]} 12. cxd6 {[%clk 0:02:05]}  cxd6 {[%clk 0:02:25]} 13. Be3 {[%clk 0:02:06]}  b6 {[%clk 0:02:16]} 14. h3 {[%clk 0:02:02]}  Nh5 {[%clk 0:02:09]} 15. Nb5 {[%clk 0:01:54]}  Nc8 {[%clk 0:02:08]} 16. Rfc1 {[%clk 0:01:35]}  Nf4 {[%clk 0:02:07]} 17. gxf4 {[%clk 0:01:13]}  Qxh4 {[%clk 0:02:06]} 18. Rc4 {[%clk 0:01:12]}  Qh5 {[%clk 0:01:52]} 19. fxe5 {[%clk 0:01:02]}  Bxe5 {[%clk 0:01:52]} 20. Nd4 {[%clk 0:00:47]}  Bxh3 {[%clk 0:01:38]} 21. Bxh3 {[%clk 0:00:45]}  Qxh3 {[%clk 0:01:37]} 22. Nf3 {[%clk 0:00:46]}  Ne7 {[%clk 0:01:02]} 23. Rh4 {[%clk 0:00:34]}  Qf5 {[%clk 0:01:03]} 24. Kg2 {[%clk 0:00:19]}  Bf6 {[%clk 0:00:56]} 25. Rf4 {[%clk 0:00:18]}  Qd7 {[%clk 0:00:35]} 26. Rxf6 {[%clk 0:00:17]}  Qg4+ {[%clk 0:00:36]} 27. Kh1 {[%clk 0:00:17]}  Qh5+ {[%clk 0:00:33]} 28. Nh2 {[%clk 0:00:17]}  Qxe2 {[%clk 0:00:22]} 29. Rg1 {[%clk 0:00:17]}  Rbc8 {[%clk 0:00:20]} 30. Ng4 {[%clk 0:00:11]}  Rc4 {[%clk 0:00:19]} 31. Rf4 {[%clk 0:00:07]}  Rxf4 {[%clk 0:00:15]} 32. Nh6+ {[%clk 0:00:02]}  Kg7 {[%clk 0:00:14]} 33. Qc3+ {[%clk 0:00:01]}  f6 {[%clk 0:00:14]} 0-1


[Site "https://www.chess.com"]

[Event "Titled Tuesday Blitz December 20 Early 2022"]
[White "alexrustemov"]
[Black "GoltsevDmitry2000"]
[WhiteElo "2891"]
[BlackElo "2739"]
[Result "1-0"]
[Round "11"]
[TimeControl "180+2"]
[Date "2022.12.20"]
[WhiteClock "0:01:37"]
[BlackClock "0:02:06"]

1. d4 {[%clk 0:03:00]}  Nf6 {[%clk 0:02:57]} 2. c4 {[%clk 0:03:01]}  e6 {[%clk 0:02:58]} 3. Nf3 {[%clk 0:03:01]}  d5 {[%clk 0:02:58]} 4. Nc3 {[%clk 0:03:02]}  dxc4 {[%clk 0:02:57]} 5. e4 {[%clk 0:03:01]}  Nbd7 {[%clk 0:02:57]} 6. Bxc4 {[%clk 0:03:00]}  Nb6 {[%clk 0:02:56]} 7. Bd3 {[%clk 0:02:47]}  Be7 {[%clk 0:02:56]} 8. Qe2 {[%clk 0:02:33]}  c5 {[%clk 0:02:56]} 9. dxc5 {[%clk 0:02:27]}  Bxc5 {[%clk 0:02:57]} 10. Bg5 {[%clk 0:02:23]}  h6 {[%clk 0:02:56]} 11. Bh4 {[%clk 0:02:22]}  g5 {[%clk 0:02:48]} 12. Bg3 {[%clk 0:02:22]}  O-O {[%clk 0:02:48]} 13. h4 {[%clk 0:02:16]}  g4 {[%clk 0:02:46]} 14. Ne5 {[%clk 0:02:15]}  h5 {[%clk 0:02:46]} 15. f3 {[%clk 0:02:11]}  Nbd7 {[%clk 0:02:41]} 16. O-O-O {[%clk 0:02:06]}  Qa5 {[%clk 0:02:19]} 17. Nc4 {[%clk 0:01:57]}  Qa6 {[%clk 0:02:11]} 18. e5 {[%clk 0:01:54]}  Nd5 {[%clk 0:02:07]} 19. Qe4 {[%clk 0:01:47]}  f5 {[%clk 0:02:06]} 20. exf6 {[%clk 0:01:44]}  N7xf6 {[%clk 0:02:06]} 21. Qg6+ {[%clk 0:01:44]}  Kh8 {[%clk 0:02:06]} 22. Be5 {[%clk 0:01:37]} 1-0


[Site "https://www.chess.com"]

[Event "Titled Tuesday Blitz December 20 Early 2022"]
[White "bazar-wokzal"]
[Black "TokChess"]
[WhiteElo "2582"]
[BlackElo "2504"]
[Result "1-0"]
[Round "11"]
[TimeControl "180+2"]
[Date "2022.12.20"]
[WhiteClock "0:00:09"]
[BlackClock "0:00:04"]

1. e4 {[%clk 0:03:00]}  c6 {[%clk 0:03:00]} 2. d4 {[%clk 0:03:00]}  d5 {[%clk 0:03:00]} 3. e5 {[%clk 0:03:00]}  c5 {[%clk 0:03:00]} 4. dxc5 {[%clk 0:03:00]}  e6 {[%clk 0:03:00]} 5. Nf3 {[%clk 0:02:53]}  Nd7 {[%clk 0:02:57]} 6. a3 {[%clk 0:02:46]}  Bxc5 {[%clk 0:02:56]} 7. Bd3 {[%clk 0:02:42]}  Ne7 {[%clk 0:02:53]} 8. O-O {[%clk 0:02:40]}  Ng6 {[%clk 0:02:53]} 9. Qe2 {[%clk 0:02:33]}  a6 {[%clk 0:02:47]} 10. b4 {[%clk 0:02:25]}  Ba7 {[%clk 0:02:47]} 11. c4 {[%clk 0:02:25]}  dxc4 {[%clk 0:02:45]} 12. Bxc4 {[%clk 0:02:24]}  b5 {[%clk 0:02:43]} 13. Bb3 {[%clk 0:02:20]}  Bb7 {[%clk 0:02:43]} 14. Nbd2 {[%clk 0:02:17]}  Nf4 {[%clk 0:02:40]} 15. Qd1 {[%clk 0:02:13]}  Nd3 {[%clk 0:02:10]} 16. Qc2 {[%clk 0:01:52]}  N3xe5 {[%clk 0:02:01]} 17. Nxe5 {[%clk 0:01:52]}  Nxe5 {[%clk 0:02:02]} 18. Bb2 {[%clk 0:01:52]}  Qg5 {[%clk 0:01:55]} 19. Ne4 {[%clk 0:01:42]}  Nf3+ {[%clk 0:01:22]} 20. Kh1 {[%clk 0:01:42]}  Qh5 {[%clk 0:01:23]} 21. h3 {[%clk 0:01:35]}  O-O {[%clk 0:01:09]} 22. Qc3 {[%clk 0:01:23]}  Bd4 {[%clk 0:01:07]} 23. Qxf3 {[%clk 0:01:23]}  Qxf3 {[%clk 0:01:06]} 24. gxf3 {[%clk 0:01:23]}  Bxb2 {[%clk 0:01:07]} 25. Rab1 {[%clk 0:01:15]}  Bxa3 {[%clk 0:00:51]} 26. Bc2 {[%clk 0:01:04]}  a5 {[%clk 0:00:49]} 27. bxa5 {[%clk 0:00:56]}  Rxa5 {[%clk 0:00:47]} 28. Kg2 {[%clk 0:00:56]}  Be7 {[%clk 0:00:45]} 29. Rfd1 {[%clk 0:00:51]}  Bd5 {[%clk 0:00:34]} 30. Nc3 {[%clk 0:00:45]}  Bc4 {[%clk 0:00:34]} 31. Rd7 {[%clk 0:00:40]}  Bf6 {[%clk 0:00:34]} 32. Ne4 {[%clk 0:00:40]}  Be5 {[%clk 0:00:35]} 33. Ng5 {[%clk 0:00:30]}  g6 {[%clk 0:00:33]} 34. h4 {[%clk 0:00:25]}  h6 {[%clk 0:00:30]} 35. Ne4 {[%clk 0:00:24]}  Kg7 {[%clk 0:00:28]} 36. Nc5 {[%clk 0:00:17]}  Ra2 {[%clk 0:00:27]} 37. Bb3 {[%clk 0:00:15]}  Bxb3 {[%clk 0:00:23]} 38. Rxb3 {[%clk 0:00:14]}  Re8 {[%clk 0:00:15]} 39. Rxb5 {[%clk 0:00:14]}  Rc2 {[%clk 0:00:13]} 40. Nd3 {[%clk 0:00:12]}  Bd4 {[%clk 0:00:10]} 41. Rbb7 {[%clk 0:00:11]}  Rf8 {[%clk 0:00:10]} 42. h5 {[%clk 0:00:11]}  gxh5 {[%clk 0:00:10]} 43. Nf4 {[%clk 0:00:10]}  Kf6 {[%clk 0:00:06]} 44. Nxh5+ {[%clk 0:00:08]}  Kg5 {[%clk 0:00:07]} 45. Ng3 {[%clk 0:00:08]}  Rxf2+ {[%clk 0:00:06]} 46. Kh3 {[%clk 0:00:08]}  Be5 {[%clk 0:00:03]} 47. Ne4+ {[%clk 0:00:08]}  Kf4 {[%clk 0:00:04]} 48. Nxf2 {[%clk 0:00:09]}  Kxf3 {[%clk 0:00:04]} 49. Ng4 {[%clk 0:00:09]} 1-0


[Site "https://www.chess.com"]

[Event "Titled Tuesday Blitz December 20 Early 2022"]
[White "kritipatel"]
[Black "Artels, Lieven"]
[BlackFideId "205834"]
[WhiteElo "2085"]
[BlackElo "1984"]
[Result "1-0"]
[Round "11"]
[TimeControl "180+2"]
[Date "2022.12.20"]
[WhiteClock "0:01:56"]
[BlackClock "0:01:32"]

1. e4 {[%clk 0:03:00]}  e6 {[%clk 0:02:59]} 2. d4 {[%clk 0:03:01]}  d5 {[%clk 0:02:57]} 3. Nc3 {[%clk 0:03:01]}  Bb4 {[%clk 0:02:54]} 4. exd5 {[%clk 0:03:01]}  Bxc3+ {[%clk 0:02:51]} 5. bxc3 {[%clk 0:02:59]}  exd5 {[%clk 0:02:51]} 6. Bd3 {[%clk 0:02:59]}  Ne7 {[%clk 0:02:44]} 7. Nf3 {[%clk 0:02:57]}  Nbc6 {[%clk 0:02:44]} 8. O-O {[%clk 0:02:57]}  Bg4 {[%clk 0:02:35]} 9. Qe2 {[%clk 0:02:51]}  Qd7 {[%clk 0:02:28]} 10. Bg5 {[%clk 0:02:49]}  f6 {[%clk 0:02:22]} 11. Bf4 {[%clk 0:02:47]}  O-O {[%clk 0:02:18]} 12. h3 {[%clk 0:02:35]}  Bxh3 {[%clk 0:02:09]} 13. gxh3 {[%clk 0:02:26]}  Qxh3 {[%clk 0:02:09]} 14. Bg3 {[%clk 0:02:24]}  Rae8 {[%clk 0:02:04]} 15. Nh2 {[%clk 0:02:23]}  Nf5 {[%clk 0:02:03]} 16. Qg4 {[%clk 0:02:19]}  Qxg4 {[%clk 0:01:57]} 17. Nxg4 {[%clk 0:02:19]}  Nxg3 {[%clk 0:01:56]} 18. fxg3 {[%clk 0:02:19]}  Re7 {[%clk 0:01:53]} 19. Kg2 {[%clk 0:02:19]}  Rfe8 {[%clk 0:01:53]} 20. Rh1 {[%clk 0:02:19]}  Kf7 {[%clk 0:01:47]} 21. Rxh7 {[%clk 0:02:17]}  Nd8 {[%clk 0:01:44]} 22. Rf1 {[%clk 0:02:11]}  Ne6 {[%clk 0:01:44]} 23. Rxf6+ {[%clk 0:02:10]}  Kg8 {[%clk 0:01:42]} 24. Rf1 {[%clk 0:02:09]}  Ng5 {[%clk 0:01:41]} 25. Rh5 {[%clk 0:02:08]}  Nf7 {[%clk 0:01:37]} 26. Bh7+ {[%clk 0:01:59]}  Kf8 {[%clk 0:01:35]} 27. Bg6 {[%clk 0:01:59]}  Re2+ {[%clk 0:01:34]} 28. Kh3 {[%clk 0:01:57]}  R2e7 {[%clk 0:01:32]} 29. Rh8# {[%clk 0:01:56]} 1-0


[Site "https://www.chess.com"]

[Event "Titled Tuesday Blitz December 20 Early 2022"]
[White "politeplayer"]
[Black "Nenezic, Marko"]
[BlackFideId "912123"]
[WhiteElo "2244"]
[BlackElo "2514"]
[Result "1-0"]
[Round "11"]
[TimeControl "180+2"]
[Date "2022.12.20"]
[WhiteClock "0:00:31"]
[BlackClock "0:00:04"]

1. e4 {[%clk 0:03:00]}  e6 {[%clk 0:02:59]} 2. c4 {[%clk 0:02:59]}  d5 {[%clk 0:03:00]} 3. cxd5 {[%clk 0:02:59]}  exd5 {[%clk 0:03:00]} 4. Qb3 {[%clk 0:03:00]}  Be7 {[%clk 0:02:31]} 5. exd5 {[%clk 0:02:58]}  Nf6 {[%clk 0:02:30]} 6. Nc3 {[%clk 0:02:58]}  O-O {[%clk 0:02:29]} 7. Nf3 {[%clk 0:02:58]}  b6 {[%clk 0:02:09]} 8. d4 {[%clk 0:02:36]}  Bb7 {[%clk 0:02:06]} 9. Bc4 {[%clk 0:02:37]}  a6 {[%clk 0:01:34]} 10. a4 {[%clk 0:02:35]}  b5 {[%clk 0:01:26]} 11. axb5 {[%clk 0:02:18]}  axb5 {[%clk 0:01:25]} 12. Rxa8 {[%clk 0:02:19]}  Bxa8 {[%clk 0:01:17]} 13. Qxb5 {[%clk 0:02:12]}  Nbd7 {[%clk 0:01:06]} 14. Ne5 {[%clk 0:02:00]}  Nb6 {[%clk 0:01:01]} 15. Nc6 {[%clk 0:01:55]}  Bxc6 {[%clk 0:00:46]} 16. Qxc6 {[%clk 0:01:52]}  Nxc4 {[%clk 0:00:21]} 17. Qxc4 {[%clk 0:01:51]}  Qd7 {[%clk 0:00:19]} 18. Bf4 {[%clk 0:01:39]}  Bd6 {[%clk 0:00:17]} 19. Bxd6 {[%clk 0:01:31]}  Qxd6 {[%clk 0:00:16]} 20. O-O {[%clk 0:01:32]}  Ng4 {[%clk 0:00:16]} 21. g3 {[%clk 0:01:32]}  Qh6 {[%clk 0:00:15]} 22. h4 {[%clk 0:01:31]}  g5 {[%clk 0:00:14]} 23. Qc6 {[%clk 0:01:28]}  Qh5 {[%clk 0:00:12]} 24. Ne4 {[%clk 0:01:22]}  gxh4 {[%clk 0:00:09]} 25. Qd7 {[%clk 0:01:22]}  f5 {[%clk 0:00:05]} 26. Qe6+ {[%clk 0:01:18]}  Kg7 {[%clk 0:00:03]} 27. Qe7+ {[%clk 0:01:14]}  Rf7 {[%clk 0:00:03]} 28. Qg5+ {[%clk 0:01:13]}  Qxg5 {[%clk 0:00:02]} 29. Nxg5 {[%clk 0:01:14]}  Rd7 {[%clk 0:00:01]} 30. Ne6+ {[%clk 0:01:07]}  Kf6 {[%clk 0:00:01]} 31. Nf4 {[%clk 0:01:07]}  hxg3 {[%clk 0:00:01]} 32. fxg3 {[%clk 0:01:07]}  Ne3 {[%clk 0:00:01]} 33. Re1 {[%clk 0:01:06]}  Nxd5 {[%clk 0:00:01]} 34. Re6+ {[%clk 0:01:04]}  Kf7 {[%clk 0:00:01]} 35. Rh6 {[%clk 0:01:04]}  Nxf4 {[%clk 0:00:01]} 36. Rxh7+ {[%clk 0:01:04]}  Ke6 {[%clk 0:00:02]} 37. Rxd7 {[%clk 0:01:02]}  Ne2+ {[%clk 0:00:02]} 38. Kf2 {[%clk 0:01:01]}  Kxd7 {[%clk 0:00:02]} 39. Kxe2 {[%clk 0:01:02]}  Ke6 {[%clk 0:00:03]} 40. Ke3 {[%clk 0:00:52]}  Kd5 {[%clk 0:00:03]} 41. Kf4 {[%clk 0:00:49]}  Ke6 {[%clk 0:00:03]} 42. d5+ {[%clk 0:00:45]}  Kf6 {[%clk 0:00:03]} 43. b4 {[%clk 0:00:40]}  Kg6 {[%clk 0:00:03]} 44. d6 {[%clk 0:00:34]}  cxd6 {[%clk 0:00:03]} 45. b5 {[%clk 0:00:34]}  Kf6 {[%clk 0:00:03]} 46. b6 {[%clk 0:00:34]}  Ke6 {[%clk 0:00:04]} 47. b7 {[%clk 0:00:35]}  Kd7 {[%clk 0:00:04]} 48. b8=Q {[%clk 0:00:32]}  Ke6 {[%clk 0:00:04]} 49. Qc8+ {[%clk 0:00:31]}  Kf6 {[%clk 0:00:04]} 50. Qxf5+ {[%clk 0:00:32]}  Ke7 {[%clk 0:00:04]} 51. g4 {[%clk 0:00:31]}  d5 {[%clk 0:00:04]} 52. g5 {[%clk 0:00:32]}  Kd6 {[%clk 0:00:04]} 53. g6 {[%clk 0:00:32]}  d4 {[%clk 0:00:05]} 54. g7 {[%clk 0:00:32]}  d3 {[%clk 0:00:05]} 55. g8=Q {[%clk 0:00:31]}  d2 {[%clk 0:00:05]} 56. Qfd5+ {[%clk 0:00:31]}  Ke7 {[%clk 0:00:04]} 57. Qg7+ {[%clk 0:00:31]}  Ke8 {[%clk 0:00:04]} 58. Qdd7# {[%clk 0:00:31]} 1-0


[Site "https://www.chess.com"]

[Event "Titled Tuesday Blitz December 20 Early 2022"]
[White "profofchess"]
[Black "Benamar, Benious"]
[BlackFideId "45118841"]
[WhiteElo "2442"]
[BlackElo "1136"]
[Result "0-1"]
[Round "11"]
[TimeControl "180+2"]
[Date "2022.12.20"]
[WhiteClock "0:00:05"]
[BlackClock "0:00:19"]

1. e4 {[%clk 0:03:00]}  e6 {[%clk 0:03:00]} 2. d4 {[%clk 0:03:00]}  d6 {[%clk 0:03:01]} 3. Nc3 {[%clk 0:02:59]}  c6 {[%clk 0:03:02]} 4. Nf3 {[%clk 0:02:57]}  b6 {[%clk 0:03:03]} 5. Bd3 {[%clk 0:02:57]}  a6 {[%clk 0:03:04]} 6. O-O {[%clk 0:02:57]}  f6 {[%clk 0:03:05]} 7. e5 {[%clk 0:02:55]}  dxe5 {[%clk 0:03:03]} 8. dxe5 {[%clk 0:02:55]}  f5 {[%clk 0:03:04]} 9. a4 {[%clk 0:02:50]}  Ne7 {[%clk 0:02:51]} 10. a5 {[%clk 0:02:45]}  b5 {[%clk 0:02:49]} 11. Be3 {[%clk 0:02:41]}  Nd7 {[%clk 0:02:43]} 12. Re1 {[%clk 0:02:35]}  c5 {[%clk 0:02:35]} 13. Ng5 {[%clk 0:02:26]}  Nxe5 {[%clk 0:02:17]} 14. Bxc5 {[%clk 0:02:26]}  Nxd3 {[%clk 0:02:13]} 15. cxd3 {[%clk 0:02:25]}  Ng6 {[%clk 0:01:58]} 16. Nxe6 {[%clk 0:02:04]}  Bxe6 {[%clk 0:01:59]} 17. Rxe6+ {[%clk 0:02:01]}  Kf7 {[%clk 0:01:59]} 18. Bb6 {[%clk 0:01:46]}  Qd7 {[%clk 0:01:45]} 19. Re3 {[%clk 0:01:40]}  Bd6 {[%clk 0:00:22]} 20. Qb3+ {[%clk 0:01:34]}  Kf6 {[%clk 0:00:23]} 21. Nd5+ {[%clk 0:01:02]}  Kg5 {[%clk 0:00:22]} 22. d4 {[%clk 0:00:34]}  h5 {[%clk 0:00:21]} 23. Rae1 {[%clk 0:00:19]}  Rhe8 {[%clk 0:00:20]} 24. h4+ {[%clk 0:00:19]}  Kh6 {[%clk 0:00:19]} 25. Qd3 {[%clk 0:00:08]}  Qf7 {[%clk 0:00:17]} 26. Nc3 {[%clk 0:00:06]}  f4 {[%clk 0:00:17]} 27. Rxe8 {[%clk 0:00:06]}  Rxe8 {[%clk 0:00:17]} 28. Rxe8 {[%clk 0:00:06]}  Qxe8 {[%clk 0:00:18]} 29. Qd2 {[%clk 0:00:05]}  Nxh4 {[%clk 0:00:18]} 30. g3 {[%clk 0:00:05]}  Nf3+ {[%clk 0:00:18]} 31. Kg2 {[%clk 0:00:05]}  Nxd2 {[%clk 0:00:19]} 0-1


[Site "https://www.chess.com"]